fUSD/lending_fUSD_20251112
["ID","MTS","AMOUNT","RATE_DAILY","PERIOD"]
[393673217,1762908641805,-160.57,0.00036874,2]
[393673218,1762908641816,-500.0,0.00036986,7]
[393673219,1762908641826,-160.0,0.00037,2]
[393673220,1762908641835,-162.0,0.00037,90]
[393673221,1762908641846,-162.0,0.00037,60]
[393673222,1762908641856,-161.09,0.00037,33]
[393673223,1762908641867,-250.0,0.00037008,2]
[393673224,1762908641877,-166.66,0.00037028,30]
[393673225,1762908641888,-6257.57777886,0.00037113,4]
[393673226,1762908641898,-232.20154456,0.00037123,7]
[393673227,1762908641908,-195.28418553,0.000372,120]
[393673228,1762908641917,-195.28418553,0.000372,120]
[393673229,1762908641927,-195.28418553,0.000372,120]
[393673230,1762908641937,-4422.46191064,0.00037371,4]
[393673231,1762908641946,-5000.0,0.00037381,2]
[393673232,1762908641957,-150.0,0.00037397,2]
[393673233,1762908641967,-6257.57777886,0.00037483,4]
[393673234,1762908641980,-150.0,0.00037493,2]
[393673235,1762908641990,-150.0,0.00037493,120]
[393673236,1762908642000,-4422.46191064,0.00037597,4]
[393673237,1762908642010,-6257.57777886,0.00037597,4]
[393673238,1762908642020,-12703.01,0.00037607,2]
[393673239,1762908642029,-4422.46191064,0.00037663,4]
[393673240,1762908642039,-500.0,0.00037673,5]
[393673241,1762908642049,-500.26491085,0.00037673,5]
[393673242,1762908642059,-500.0,0.00037673,5]
[393673243,1762908642068,-500.0,0.00037673,5]
[393673244,1762908642077,-6257.57777886,0.00037679,4]
[393673245,1762908642087,-168.77914427,0.00037695,2]
[393673246,1762908642096,-873.62,0.00037735,5]
[393673247,1762908642105,-166.66,0.00037776,30]
[393673248,1762908642115,-1000.0,0.00037795,2]
[393673249,1762908642124,-4422.46191064,0.00037802,4]
[393673250,1762908642134,-150.0,0.00037812,2]
[393673251,1762908642144,-500.0,0.000379,13]
[393673252,1762908642158,-200.0,0.0003796,2]
[393673253,1762908642167,-6257.57777886,0.00037974,4]
[393673254,1762908642177,-999.0,0.00037984,3]
[393673255,1762908642187,-168.0,0.00038,30]
[393673256,1762908642198,-155.0,0.00038,30]
[393673257,1762908642209,-1000.0,0.00038,30]
[393673258,1762908642220,-631.88,0.0003801,2]
[393673259,1762908642230,-204.67,0.00038086,60]
[393673260,1762908642240,-195.28418553,0.00038211,120]
[393673261,1762908642250,-178.3008851,0.00038221,5]
[393673262,1762908642259,-1003.26138861,0.00038221,5]
[393673263,1762908642431,-1002.32902604,0.00038221,5]
[393673264,1762908642442,-6257.57777886,0.00038336,4]
[393673265,1762908642452,-13267.3857319,0.00038346,4]
[393673266,1762908642464,-12515.1555577,0.00038346,4]
[393673267,1762908642474,-500.0,0.00038356,20]
[393673268,1762908642483,-500.0,0.00038356,20]
[393673269,1762908642497,-500.0,0.00038356,20]
[393673270,1762908642507,-10602.86,0.00038356,20]
[393673271,1762908642516,-10602.86,0.00038356,20]
[393673272,1762908642525,-500.0,0.00038356,2]
[393673273,1762908642534,-500.0,0.00038356,2]
[393673274,1762908642544,-500.0,0.00038356,2]
[393673275,1762908642553,-166.66,0.00038524,30]
[393673276,1762908642562,-6257.57777886,0.0003861,4]
[393673277,1762908642571,-4422.46191064,0.0003862,4]
[393673278,1762908642581,-500.0,0.00038624,7]
[393673279,1762908642590,-500.0,0.00038624,7]
[393673280,1762908642600,-500.0,0.00038624,7]
[393673281,1762908642609,-1315.74,0.0003863,2]
[393673282,1762908642619,-162.76175569,0.00038685,30]
[393673283,1762908642628,-500.0,0.000387,120]
[393673284,1762908642638,-500.0,0.000387,120]
[393673285,1762908642647,-500.0,0.000387,120]
[393673286,1762908642657,-500.0,0.000387,120]
[393673287,1762908642666,-500.0,0.000387,120]
[393673288,1762908642675,-500.0,0.000387,120]
[393673289,1762908642684,-500.0,0.000387,120]
[393673291,1762908642693,-500.0,0.000387,120]
[393673293,1762908642705,-500.0,0.000387,120]
[393673295,1762908642715,-500.0,0.000387,120]
[393673296,1762908642724,-1000.0,0.00039,14]
[393673298,1762908642733,-162.0,0.00039,90]
[393673300,1762908642743,-162.0,0.00039,60]
[393673301,1762908642752,-6257.57777886,0.0003908,4]
[393673302,1762908642761,-4422.46191064,0.0003909,4]
[393673303,1762908642770,-162.76175569,0.00039096,30]
[393673304,1762908642779,-1500.0,0.000391,14]
[393673305,1762908642788,-2100.0,0.000392,14]
[393673306,1762908642798,-2000.0,0.00039266,120]
[393673307,1762908642807,-166.66,0.00039273,30]
[393673308,1762908642816,-370.74,0.000393,120]
[393673309,1762908642826,-2600.0,0.000393,14]
[393673310,1762908642835,-6257.57777886,0.00039311,4]
[393673311,1762908642845,-4422.46191064,0.00039321,4]
[393673312,1762908642855,-500.0,0.00039342,2]
[393673313,1762908642864,-500.0,0.000394,14]
[393673314,1762908642874,-428.1,0.00039452,2]
[393673315,1762908642883,-1206.87,0.00039452,2]
[393673316,1762908642893,-177.09,0.00039452,2]
[393673317,1762908642902,-150.0,0.00039452,2]
[393673318,1762908642913,-1206.87,0.00039452,2]
[393673319,1762908642922,-549.62,0.00039452,2]
[393673320,1762908642931,-150.0,0.00039452,2]
[393673321,1762908642940,-169.21,0.00039452,2]
[393673322,1762908642949,-416.14,0.00039452,2]
[393673323,1762908642960,-150.0,0.00039452,2]
[393673324,1762908642969,-150.0,0.00039452,2]
[393673325,1762908642978,-177.09,0.00039452,2]
[393673326,1762908642987,-150.0,0.00039452,2]
[393673327,1762908642996,-1206.87,0.00039452,2]
[393673328,1762908643005,-150.0,0.00039452,2]
[393673329,1762908643015,-416.14,0.00039452,2]
[393673330,1762908643024,-169.21,0.00039452,2]
[393673331,1762908643034,-150.0,0.00039452,2]
[393673332,1762908643043,-1206.87,0.00039452,2]
[393673333,1762908643053,-169.21,0.00039452,2]
[393673334,1762908643063,-177.09,0.00039452,2]
[393673335,1762908643072,-150.0,0.00039452,2]
[393673336,1762908643082,-416.14,0.00039452,2]
[393673337,1762908643091,-150.0,0.00039452,2]
[393673338,1762908643101,-416.14,0.00039452,2]
[393673339,1762908643111,-1206.87,0.00039452,2]
[393673340,1762908643121,-177.09,0.00039452,2]
[393673341,1762908643131,-169.21,0.00039452,2]
[393673342,1762908643141,-150.0,0.00039452,2]
[393673343,1762908643150,-150.0,0.00039452,2]
[393673344,1762908643163,-1206.87,0.00039452,2]
[393673345,1762908643172,-177.09,0.00039452,2]
[393673346,1762908643182,-150.0,0.00039452,2]
[393673347,1762908643191,-169.21,0.00039452,2]
[393673348,1762908643202,-416.14,0.00039452,2]
[393673349,1762908643213,-500.0,0.000395,14]
[393673350,1762908643222,-158.745964,0.00039589,2]
[393673351,1762908643234,-177.14682,0.00039589,2]
[393673352,1762908643244,-500.0,0.000396,14]
[393673353,1762908643253,-6257.57777886,0.00039606,4]
[393673354,1762908643263,-153.0,0.00039612,120]
[393673355,1762908643273,-153.0,0.00039612,120]
[393673356,1762908643287,-153.0,0.00039614,120]
[393673357,1762908643296,-153.0,0.00039614,120]
[393673358,1762908643306,-13267.3857319,0.00039615,4]
[393673359,1762908643316,-18772.7333366,0.00039615,4]
[393673360,1762908643326,-574.0,0.00039625,2]
[393673361,1762908643335,-608.0,0.00039625,2]
[393673362,1762908643345,-3426.0,0.00039625,2]
[393673363,1762908643354,-1317.0,0.00039625,2]
[393673364,1762908643363,-820.0,0.00039625,2]
[393673365,1762908643372,-1597.0,0.00039625,2]
[393673366,1762908643382,-813.0,0.00039625,2]
[393673367,1762908643391,-1274.0,0.00039625,2]
[393673368,1762908643401,-2143.0,0.00039625,2]
[393673369,1762908643410,-560.0,0.00039625,2]
[393673370,1762908643420,-4496.272,0.00039625,2]
[393673371,1762908643430,-6481.0,0.00039625,2]
[393673372,1762908643439,-225.51,0.00039654,2]
[393673373,1762908643449,-291.71272991,0.00039673,5]
[393673374,1762908643459,-500.0,0.000397,14]
[393673375,1762908643470,-4422.46191064,0.0003979,4]
[393673378,1762908643488,-900.0,0.000398,14]
[393673381,1762908643500,-168.0,0.00039845,2]
[393673383,1762908643510,-366.56167,0.0003986,2]
[393673385,1762908643519,-928.15037496,0.000399,2]
[393673387,1762908643529,-200.0,0.00039939,20]
[393673389,1762908643539,-928.15037493,0.00039944,2]
[393673391,1762908643549,-18772.7333366,0.0003997,4]
[393673393,1762908643559,-35379.6952851,0.0003998,4]
[393673395,1762908643569,-928.15037493,0.00039987,2]
[393673397,1762908643578,-10602.86,0.00039999,20]
[393673398,1762908643588,-10602.86,0.00039999,20]
[393673399,1762908643598,-10602.86,0.00039999,20]
[393673400,1762908643608,-10602.86,0.00039999,20]
[393673401,1762908643618,-10602.86,0.00039999,20]
[393673402,1762908643628,-10602.86,0.00039999,20]
[393673403,1762908643638,-10602.86,0.00039999,20]
[393673404,1762908643647,-10602.86,0.00039999,20]
[393673405,1762908643657,-10602.86,0.00039999,20]
[393673406,1762908643667,-10602.86,0.00039999,20]
[393673407,1762908643677,-10602.86,0.00039999,20]
[393673408,1762908643686,-10602.86,0.00039999,20]
[393673409,1762908643696,-10602.86,0.00039999,20]
[393673410,1762908643706,-10602.86,0.00039999,20]
[393673411,1762908643716,-10602.86,0.00039999,20]
[393673412,1762908643726,-10602.86,0.00039999,20]
[393673413,1762908643736,-10602.86,0.00039999,20]
[393673414,1762908643746,-10602.86,0.00039999,20]
[393673415,1762908643756,-10602.86,0.00039999,20]
[393673416,1762908643766,-10602.86,0.00039999,20]
[393673417,1762908643775,-10602.86,0.00039999,20]
[393673418,1762908643784,-10603.01530326,0.00039999,20]
[393673419,1762908643793,-1000.0,0.0004,2]
[393673420,1762908643802,-162.0,0.0004,120]
[393673421,1762908643812,-1299.0,0.0004,120]
[393673422,1762908643821,-474.5059866,0.0004,120]
[393673423,1762908643830,-928.15037493,0.00040031,2]
[393673424,1762908643840,-169.83900509,0.00040059,120]
[393673425,1762908643850,-490.93231718,0.00040059,120]
[393673426,1762908643869,-6257.57777886,0.00040065,4]
[393673427,1762908643879,-928.15037493,0.00040075,2]
[393673428,1762908643888,-150.13,0.0004009,2]
[393673429,1762908643898,-5000.0,0.000401,120]
[393673430,1762908643908,-928.15037493,0.00040118,2]
[393673431,1762908643917,-1175.54534566,0.00040123,14]
[393673432,1762908643927,-158.745964,0.00040128,60]
[393673433,1762908643936,-177.14682,0.00040128,60]
[393673434,1762908643946,-732.85153212,0.0004014,7]
[393673435,1762908643955,-6257.57777886,0.0004015,4]
[393673436,1762908643965,-500.0,0.00040151,2]
[393673437,1762908643974,-1638.0,0.0004016,5]
[393673438,1762908643984,-151.0,0.00040161,28]
[393673439,1762908643993,-151.0,0.00040161,28]
[393673440,1762908644002,-151.0,0.00040161,28]
[393673441,1762908644011,-151.0,0.00040161,28]
[393673442,1762908644020,-151.0,0.00040161,28]
[393673443,1762908644030,-151.0,0.00040161,28]
[393673444,1762908644039,-151.0,0.00040161,28]
[393673445,1762908644048,-151.0,0.00040161,28]
[393673446,1762908644057,-151.0,0.00040161,28]
[393673447,1762908644066,-151.0,0.00040161,28]
[393673448,1762908644075,-151.0,0.00040161,28]
[393673449,1762908644084,-195.28418553,0.00040162,120]
[393673450,1762908644094,-928.15037493,0.00040162,2]
[393673451,1762908644103,-168.77914427,0.00040162,28]
[393673452,1762908644113,-1311.2664461,0.00040162,2]
[393673453,1762908644122,-157.51415959,0.00040162,8]
[393673454,1762908644131,-204.67,0.00040166,60]
[393673455,1762908644142,-6257.57777886,0.0004019,4]
[393673456,1762908644152,-228.26,0.000402,60]
[393673457,1762908644165,-5000.0,0.000402,120]
[393673458,1762908644174,-367.0,0.000402,120]
[393673459,1762908644183,-158.745964,0.00040214,60]
[393673460,1762908644193,-177.14682,0.00040214,60]
[393673461,1762908644205,-155.689437,0.00040214,60]
[393673462,1762908644216,-6257.57777886,0.0004025,4]
[393673463,1762908644225,-87606.088904,0.00040251,4]
[393673464,1762908644237,-732.85153212,0.00040252,7]
[393673465,1762908644247,-732.85153212,0.00040252,7]
[393673466,1762908644257,-500.0,0.0004026,20]
[393673467,1762908644266,-296.05616504,0.0004026,2]
[393673468,1762908644276,-1000.0,0.00040261,120]
[393673469,1762908644285,-500.0,0.00040261,20]
[393673470,1762908644295,-500.0,0.00040261,20]
[393673471,1762908644305,-500.0,0.00040261,20]
[393673472,1762908644314,-500.0,0.00040261,20]
[393673473,1762908644324,-500.0,0.00040261,20]
[393673474,1762908644333,-500.0,0.00040261,20]
[393673475,1762908644343,-500.0,0.00040261,20]
[393673476,1762908644353,-500.0,0.00040261,20]
[393673477,1762908644362,-500.0,0.00040261,20]
[393673478,1762908644372,-500.0,0.00040261,20]
[393673479,1762908644381,-500.0,0.00040261,20]
[393673480,1762908644391,-500.0,0.00040261,20]
[393673481,1762908644401,-500.0,0.00040261,20]
[393673482,1762908644410,-500.0,0.00040261,20]
[393673483,1762908644420,-500.0,0.00040261,20]
[393673484,1762908644433,-500.0,0.00040261,20]
[393673485,1762908644444,-500.0,0.00040261,20]
[393673486,1762908644454,-694.78,0.00040262,30]
[393673487,1762908644463,-4669.19419768,0.00040262,120]
[393673488,1762908644473,-2827.4211165,0.00040262,2]
[393673489,1762908644483,-27066.2030138,0.00040262,2]
[393673490,1762908644492,-152.295821,0.00040262,120]
[393673491,1762908644502,-151.0,0.00040262,120]
[393673492,1762908644511,-3625.4253097,0.00040262,2]
[393673493,1762908644520,-151.0,0.00040262,120]
[393673494,1762908644530,-151.0,0.00040262,120]
[393673495,1762908644539,-151.0,0.00040262,120]
[393673496,1762908644548,-151.0,0.00040262,120]
[393673497,1762908644558,-151.0,0.00040262,120]
[393673498,1762908644567,-151.0,0.00040262,120]
[393673499,1762908644576,-151.0,0.00040262,120]
[393673500,1762908644585,-174.050863,0.00040262,120]
[393673501,1762908644595,-200.657019,0.00040262,120]
[393673502,1762908644604,-151.0,0.00040262,120]
[393673503,1762908644613,-151.0,0.00040262,120]
[393673504,1762908644623,-151.0,0.00040262,120]
[393673505,1762908644633,-151.0,0.00040262,120]
[393673506,1762908644643,-159.598216,0.00040262,120]
[393673507,1762908644652,-151.0,0.00040262,120]
[393673508,1762908644661,-151.0,0.00040262,120]
[393673509,1762908644671,-151.0,0.00040262,120]
[393673510,1762908644680,-151.0,0.00040262,120]
[393673511,1762908644689,-155.920487,0.00040262,120]
[393673512,1762908644699,-151.0,0.00040262,120]
[393673513,1762908644709,-153.61352,0.00040262,120]
[393673514,1762908644718,-214.145568,0.00040262,120]
[393673515,1762908644728,-151.0,0.00040262,120]
[393673516,1762908644737,-151.0,0.00040262,120]
[393673517,1762908644746,-151.0,0.00040262,120]
[393673518,1762908644755,-172.872345,0.00040262,120]
[393673519,1762908644765,-151.0,0.00040262,120]
[393673520,1762908644775,-151.0,0.00040262,120]
[393673521,1762908644784,-151.0,0.00040262,120]
[393673522,1762908644793,-151.0,0.00040262,120]
[393673523,1762908644803,-151.0,0.00040262,120]
[393673524,1762908644813,-151.0,0.00040262,120]
[393673525,1762908644823,-151.0,0.00040262,120]
[393673526,1762908644832,-151.0,0.00040262,120]
[393673527,1762908644842,-151.069191,0.00040262,5]
[393673528,1762908644851,-151.0,0.00040262,120]
[393673529,1762908644860,-154.904028,0.00040262,120]
[393673530,1762908644869,-151.0,0.00040262,120]
[393673531,1762908644878,-151.0,0.00040262,120]
[393673532,1762908644887,-153.85445,0.00040262,120]
[393673533,1762908644897,-5419.2941694,0.00040262,2]
[393673534,1762908644906,-151.0,0.00040262,120]
[393673535,1762908644915,-151.0,0.00040262,120]
[393673536,1762908644925,-151.0,0.00040262,120]
[393673537,1762908644934,-153.422414,0.00040262,120]
[393673538,1762908644943,-152.70656,0.00040262,120]
[393673539,1762908644952,-151.0,0.00040262,120]
[393673540,1762908644963,-151.0,0.00040262,120]
[393673541,1762908644972,-151.0,0.00040262,60]
[393673542,1762908644982,-151.0,0.00040262,60]
[393673543,1762908644991,-290.188916,0.00040262,120]
[393673544,1762908645001,-151.0,0.00040262,90]
[393673545,1762908645010,-151.0,0.00040262,120]
[393673546,1762908645020,-151.0,0.00040262,120]
[393673547,1762908645029,-151.0,0.00040262,120]
[393673548,1762908645038,-154.048123,0.00040262,120]
[393673549,1762908645048,-151.0,0.00040262,120]
[393673550,1762908645057,-151.0,0.00040262,120]
[393673551,1762908645066,-151.0,0.00040262,120]
[393673552,1762908645075,-151.0,0.00040262,120]
[393673553,1762908645084,-151.0,0.00040262,120]
[393673554,1762908645094,-151.0,0.00040262,120]
[393673555,1762908645105,-151.0,0.00040262,120]
[393673556,1762908645114,-151.0,0.00040262,120]
[393673557,1762908645124,-155.198811,0.00040262,30]
[393673558,1762908645135,-151.0,0.00040262,120]
[393673559,1762908645144,-151.0,0.00040262,120]
[393673560,1762908645156,-151.0,0.00040262,120]
[393673561,1762908645167,-211.673226,0.00040262,120]
[393673562,1762908645177,-252.0,0.00040262,120]
[393673563,1762908645186,-151.0,0.00040262,120]
[393673564,1762908645195,-151.0,0.00040262,120]
[393673565,1762908645207,-151.0,0.00040262,120]
[393673566,1762908645216,-151.0,0.00040262,120]
[393673567,1762908645226,-151.0,0.00040262,120]
[393673568,1762908645236,-151.0,0.00040262,120]
[393673569,1762908645245,-151.0,0.00040262,120]
[393673570,1762908645255,-151.0,0.00040262,120]
[393673571,1762908645265,-151.0,0.00040262,120]
[393673572,1762908645274,-151.0,0.00040262,120]
[393673573,1762908645284,-151.0,0.00040262,120]
[393673574,1762908645294,-151.0,0.00040262,120]
[393673575,1762908645303,-151.0,0.00040262,120]
[393673576,1762908645313,-151.0,0.00040262,120]
[393673577,1762908645323,-151.0,0.00040262,120]
[393673578,1762908645333,-151.0,0.00040262,120]
[393673579,1762908645342,-151.0,0.00040262,120]
[393673580,1762908645352,-151.0,0.00040262,120]
[393673581,1762908645362,-151.0,0.00040262,120]
[393673582,1762908645371,-208.728072,0.00040262,120]
[393673583,1762908645381,-154.323712,0.00040262,120]
[393673584,1762908645390,-152.688523,0.00040262,120]
[393673585,1762908645400,-151.0,0.00040262,120]
[393673586,1762908645411,-157.609268,0.00040262,120]
[393673587,1762908645420,-151.0,0.00040262,120]
[393673588,1762908645430,-151.0,0.00040262,120]
[393673589,1762908645441,-151.0,0.00040262,120]
[393673590,1762908645450,-151.0,0.00040262,120]
[393673591,1762908645461,-151.0,0.00040262,120]
[393673592,1762908645475,-151.0,0.00040262,120]
[393673593,1762908645485,-151.0,0.00040262,120]
[393673594,1762908645495,-151.000001,0.00040262,120]
[393673595,1762908645506,-151.0,0.00040262,120]
[393673596,1762908645515,-291.476748,0.00040262,120]
[393673597,1762908645524,-151.0,0.00040262,120]
[393673598,1762908645534,-151.0,0.00040262,120]
[393673599,1762908645543,-151.0,0.00040262,120]
[393673600,1762908645552,-151.0,0.00040262,120]
[393673601,1762908645561,-153.335563,0.00040262,120]
[393673602,1762908645571,-151.0,0.00040262,120]
[393673603,1762908645580,-151.0,0.00040262,120]
[393673604,1762908645589,-151.0,0.00040262,120]
[393673605,1762908645734,-151.0,0.00040262,120]
[393673606,1762908645744,-151.0,0.00040262,120]
[393673607,1762908645753,-151.0,0.00040262,120]
[393673608,1762908645763,-151.0,0.00040262,30]
[393673609,1762908645771,-151.0,0.00040262,120]
[393673610,1762908645780,-151.0,0.00040262,30]
[393673611,1762908645790,-151.0,0.00040262,120]
[393673612,1762908645799,-151.0,0.00040262,30]
[393673613,1762908645808,-184.923651,0.00040262,120]
[393673614,1762908645817,-151.0,0.00040262,30]
[393673615,1762908645826,-151.0,0.00040262,30]
[393673616,1762908645835,-151.0,0.00040262,30]
[393673617,1762908645845,-151.0,0.00040262,30]
[393673618,1762908645854,-151.0,0.00040262,30]
[393673619,1762908645863,-151.0,0.00040262,30]
[393673620,1762908645873,-151.0,0.00040262,30]
[393673621,1762908645882,-151.0,0.00040262,30]
[393673622,1762908645892,-151.0,0.00040262,30]
[393673623,1762908645901,-151.0,0.00040262,30]
[393673624,1762908645911,-151.0,0.00040262,30]
[393673625,1762908645921,-151.0,0.00040262,30]
[393673626,1762908645931,-151.0,0.00040262,30]
[393673627,1762908645942,-152.737846,0.00040262,30]
[393673628,1762908645951,-446.19852,0.00040262,120]
[393673629,1762908645962,-446.19852,0.00040262,120]
[393673630,1762908645971,-446.19852,0.00040262,120]
[393673631,1762908645978,-446.19852,0.00040262,120]
[393673632,1762908645986,-446.19852,0.00040262,120]
[393673633,1762908645994,-446.19852,0.00040262,120]
[393673634,1762908646001,-151.0,0.00040262,95]
[393673635,1762908646009,-446.19852,0.00040262,120]
[393673636,1762908646016,-446.19852,0.00040262,120]
[393673637,1762908646023,-446.19852,0.00040262,120]
[393673638,1762908646031,-446.19852,0.00040262,120]
[393673639,1762908646039,-446.19852,0.00040262,120]
[393673640,1762908646047,-446.19852,0.00040262,120]
[393673641,1762908646055,-446.19852,0.00040262,120]
[393673642,1762908646062,-446.19852,0.00040262,120]
[393673643,1762908646070,-446.19852,0.00040262,120]
[393673644,1762908646077,-446.19852,0.00040262,120]
[393673645,1762908646085,-446.19852,0.00040262,120]
[393673646,1762908646093,-446.19852,0.00040262,120]
[393673647,1762908646100,-446.19852,0.00040262,120]
[393673648,1762908646108,-446.19852,0.00040262,120]
[393673649,1762908646116,-151.0,0.00040262,120]
[393673650,1762908646124,-151.0,0.00040262,120]
[393673651,1762908646132,-151.0,0.00040262,120]
[393673652,1762908646140,-151.0,0.00040262,120]
[393673653,1762908646148,-151.0,0.00040262,120]
[393673654,1762908646159,-151.0,0.00040262,120]
[393673655,1762908646167,-151.0,0.00040262,120]
[393673656,1762908646175,-151.0,0.00040262,120]
[393673657,1762908646182,-162.277168,0.00040262,120]
[393673658,1762908646190,-151.0,0.00040262,120]
[393673659,1762908646199,-164.630979,0.00040262,120]
[393673660,1762908646209,-151.0,0.00040262,120]
[393673661,1762908646218,-151.0,0.00040262,120]
[393673662,1762908646227,-151.0,0.00040262,15]
[393673663,1762908646235,-151.0,0.00040262,15]
[393673664,1762908646244,-151.0,0.00040262,120]
[393673665,1762908646251,-151.0,0.00040262,120]
[393673666,1762908646260,-151.0,0.00040262,120]
[393673667,1762908646270,-151.0,0.00040262,120]
[393673668,1762908646280,-151.0,0.00040262,120]
[393673669,1762908646290,-157.386605,0.00040262,120]
[393673670,1762908646300,-151.0,0.00040262,120]
[393673671,1762908646310,-151.0,0.00040262,120]
[393673672,1762908646320,-151.0,0.00040262,120]
[393673673,1762908646330,-151.0,0.00040262,120]
[393673674,1762908646340,-151.0,0.00040262,120]
[393673675,1762908646350,-156.767294,0.00040262,120]
[393673676,1762908646359,-151.0,0.00040262,120]
[393673677,1762908646368,-1251.7839975,0.00040262,2]
[393673678,1762908646377,-151.0,0.00040262,120]
[393673679,1762908646387,-151.0,0.00040262,120]
[393673680,1762908646396,-151.0,0.00040262,120]
[393673681,1762908646406,-151.0,0.00040262,120]
[393673682,1762908646416,-151.0,0.00040262,120]
[393673683,1762908646426,-201.840063,0.00040262,120]
[393673684,1762908646436,-151.0,0.00040262,120]
[393673685,1762908646445,-151.0,0.00040262,120]
[393673686,1762908646457,-151.0,0.00040262,120]
[393673687,1762908646467,-151.0,0.00040262,120]
[393673688,1762908646477,-151.0,0.00040262,120]
[393673689,1762908646487,-151.0,0.00040262,120]
[393673690,1762908646497,-151.0,0.00040262,120]
[393673691,1762908646506,-235.35222,0.00040262,120]
[393673692,1762908646516,-154.110627,0.00040262,120]
[393673693,1762908646526,-151.0,0.00040262,120]
[393673694,1762908646535,-151.0,0.00040262,120]
[393673695,1762908646544,-151.0,0.00040262,120]
[393673696,1762908646554,-151.0,0.00040262,120]
[393673697,1762908646563,-151.0,0.00040262,120]
[393673698,1762908646573,-151.0,0.00040262,120]
[393673699,1762908646583,-151.0,0.00040262,120]
[393673700,1762908646593,-151.0,0.00040262,120]
[393673701,1762908646602,-244.18776983,0.00040262,120]
[393673702,1762908646612,-183.948423,0.00040262,120]
[393673703,1762908646621,-151.0,0.00040262,30]
[393673704,1762908646631,-282.409688,0.00040262,120]
[393673705,1762908646641,-282.409688,0.00040262,120]
[393673706,1762908646650,-282.409688,0.00040262,120]
[393673707,1762908646659,-282.409688,0.00040262,120]
[393673708,1762908646668,-150.0,0.00040262,30]
[393673709,1762908646679,-161.11840687,0.00040262,29]
[393673710,1762908646689,-1928918.35584376,0.00040262,7]
[393673713,1762908646808,-1624.71895812,0.00040262,7]
[393673723,1762908647014,-770.67350002,0.00036051,2]
[393673725,1762908647027,-515.25,0.00036051,2]
[393673930,1762909832013,-242.16604756,0.00032,120]
[393673931,1762909832023,-183.95,0.0003212,2]
[393673932,1762909832033,-400.0,0.00032651,3]
[393673933,1762909832043,-1600.0,0.00032651,3]
[393673934,1762909832053,-4166.01374166,0.00032652,2]
[393673935,1762909832062,-1156.84472258,0.00032652,2]
[393673936,1762909832072,-63506.902324,0.00032732,3]
[393673937,1762909832081,-229.91740568,0.00032736,2]
[393673938,1762909832090,-165.4945668,0.00032736,2]
[393673939,1762909832100,-500.0,0.00032736,2]
[393673940,1762909832109,-218.18529602,0.00032736,2]
[393673941,1762909832118,-300.23018454,0.00032736,2]
[393673942,1762909832128,-176.07,0.00032737,14]
[393673943,1762909832138,-184.96880574,0.00032741,2]
[393673944,1762909832149,-399.6194547,0.00032741,2]
[393673945,1762909832159,-500.0,0.00032741,20]
[393673946,1762909832169,-521.04002408,0.00032741,20]
[393673947,1762909832179,-538.68708003,0.00032741,20]
[393673948,1762909832188,-53158.39922186,0.00032742,2]
[393673949,1762909832200,-36788.61745528,0.00032742,2]